fUSD/lending_fUSD_20240615
["ID","MTS","AMOUNT","RATE_DAILY","PERIOD"]
[329549007,1718428264625,-156.52,0.00021918,2]
[329549008,1718428264641,-250.0,0.00021918,2]
[329549009,1718428264669,-278.61,0.00021918,2]
[329549010,1718428264680,-400.0,0.00021939,2]
[329549011,1718428264691,-204.80840214,0.00022,2]
[329549012,1718428264732,-287.55211458,0.00022,2]
[329549013,1718428264794,-401.37,0.00022,2]
[329549014,1718428264806,-530.52,0.00022027,2]
[329549015,1718428264817,-230.87598154,0.00022152,2]
[329549016,1718428265282,-36.72401846,0.00022152,2]
[329549017,1718428265294,-331.22,0.00022169,2]
[329549018,1718428265306,-294.52598154,0.00022191,3]
[329549019,1718428265329,-205.47401846,0.00022191,3]
[329549020,1718428265354,-500.0,0.00022191,3]
[329549021,1718428265384,-500.0,0.00022191,3]
[329549022,1718428265424,-307.99192699,0.00022191,3]
[329549023,1718428265443,-500.0,0.00022191,3]
[329549024,1718428265490,-500.0,0.00022191,3]
[329549025,1718428265501,-500.0,0.00022191,3]
[329549026,1718428265514,-500.0,0.00022191,3]
[329549027,1718428265544,-500.0,0.00022191,3]
[329549028,1718428265576,-500.0,0.00022191,3]
[329549029,1718428265592,-500.0,0.00022191,3]
[329549030,1718428265604,-542.17,0.00022191,3]
[329549031,1718428265628,-344.25892607,0.00022191,3]
[329549032,1718428265731,-226.79813277,0.000201,2]
[329549033,1718428265745,-86.99895443,0.00022191,3]
[329549034,1718428265757,-68.7421195,0.00022191,3]
[329549035,1718428265772,-500.0,0.00022191,3]
[329549036,1718428265810,-500.0,0.00022191,3]
[329549037,1718428265824,-524.55132908,0.00022191,3]
[329549038,1718428265839,-500.0,0.00022191,3]
[329549039,1718428265853,-500.0,0.00022191,3]
[329549040,1718428265866,-500.0,0.00022191,3]
[329549041,1718428265880,-500.0,0.00022191,3]
[329549042,1718428265892,-500.0,0.00022191,3]
[329549043,1718428265912,-500.0,0.00022191,3]
[329549044,1718428265928,-500.0,0.00022191,3]
[329549045,1718428265938,-500.0,0.00022191,3]
[329549046,1718428265949,-500.0,0.00022191,3]
[329549047,1718428265970,-500.0,0.00022191,3]
[329549048,1718428265983,-500.0,0.00022191,3]
[329549049,1718428265994,-500.0,0.00022191,3]
[329549050,1718428266006,-399.70008105,0.00022191,3]
[329549051,1718428266017,-500.0,0.00022191,3]
[329549052,1718428266045,-500.0,0.00022191,3]
[329549053,1718428266069,-500.0,0.00022191,3]
[329549054,1718428266087,-500.0,0.00022191,3]
[329549055,1718428266099,-500.0,0.00022191,3]
[329549056,1718428266147,-500.0,0.00022191,3]
[329549057,1718428266196,-500.0,0.00022191,3]
[329549058,1718428266207,-500.0,0.00022191,3]
[329549059,1718428266234,-500.0,0.00022191,3]
[329549060,1718428266265,-500.0,0.00022191,3]
[329549061,1718428266328,-500.0,0.00022191,3]
[329549062,1718428266377,-500.0,0.00022191,3]
[329549063,1718428266404,-284.14621386,0.00022191,3]
[329549064,1718428266425,-500.0,0.00022191,3]
[329549065,1718428266457,-500.0,0.00022191,3]
[329549066,1718428266497,-500.0,0.00022191,3]
[329549067,1718428266539,-500.0,0.00022191,3]
[329549068,1718428266555,-500.0,0.00022191,3]
[329549069,1718428266582,-500.0,0.00022191,3]
[329549070,1718428266610,-500.0,0.00022191,3]
[329549071,1718428266627,-500.0,0.00022191,3]
[329549072,1718428266644,-241.9,0.00022191,3]
[329549073,1718428266656,-500.0,0.00022191,3]
[329549074,1718428266689,-500.0,0.00022191,3]
[329549075,1718428266700,-500.0,0.00022191,3]
[329549076,1718428266772,-500.0,0.00022191,3]
[329549077,1718428266784,-500.0,0.00022191,3]
[329549078,1718428266800,-500.0,0.00022191,3]
[329549079,1718428266815,-500.0,0.00022191,3]
[329549080,1718428266860,-500.0,0.00022191,3]
[329549081,1718428266876,-500.0,0.00022191,3]
[329549082,1718428266933,-442.08207617,0.00022191,3]
[329549083,1718428266955,-500.0,0.00022191,3]
[329549084,1718428266967,-500.0,0.00022191,3]
[329549085,1718428266996,-500.0,0.00022191,3]
[329549086,1718428267017,-214.46868395,0.00022191,3]
[329549087,1718428267036,-529.12126727,0.00022191,3]
[329549088,1718428267074,-392.4092374,0.00022191,3]
[329549089,1718428267090,-549.35707894,0.00022191,3]
[329549090,1718428267104,-297.37649689,0.00022191,3]
[329549091,1718428267117,-500.0,0.00022191,3]
[329549092,1718428267133,-500.0,0.00022191,3]
[329549093,1718428267150,-500.0,0.00022191,3]
[329549094,1718428267168,-500.0,0.00022191,3]
[329549095,1718428267187,-500.0,0.00022191,3]
[329549096,1718428267202,-500.0,0.00022191,3]
[329549097,1718428267218,-500.0,0.00022191,3]
[329549098,1718428267235,-500.0,0.00022191,3]
[329549099,1718428267248,-517.69385363,0.00022191,3]
[329549100,1718428267261,-500.0,0.00022191,3]
[329549101,1718428267274,-500.0,0.00022191,3]
[329549102,1718428267287,-500.0,0.00022191,3]
[329549103,1718428267298,-500.0,0.00022191,3]
[329549104,1718428267309,-500.0,0.00022191,3]
[329549105,1718428267329,-500.0,0.00022191,3]
[329549106,1718428267344,-500.0,0.00022191,3]
[329549107,1718428267355,-500.0,0.00022191,3]
[329549108,1718428267366,-268.73363356,0.00022191,3]
[329549109,1718428267401,-500.0,0.00022191,3]
[329549110,1718428267413,-500.0,0.00022191,3]
[329549111,1718428267424,-500.0,0.00022191,3]
[329549112,1718428267435,-500.0,0.00022191,3]
[329549113,1718428267449,-515.16742534,0.00022191,3]
[329549114,1718428267465,-500.0,0.00022191,3]
[329549115,1718428267485,-500.0,0.00022191,3]
[329549116,1718428267496,-500.0,0.00022191,3]
[329549117,1718428267508,-500.0,0.00022191,3]
[329549118,1718428267520,-500.0,0.00022191,3]
[329549119,1718428267532,-362.93655906,0.00022191,3]
[329549120,1718428267555,-137.06344094,0.00022191,3]
[329549121,1718428267567,-500.0,0.00022191,3]
[329549122,1718428267579,-379.85385198,0.00022191,3]
[329549123,1718428267609,-500.0,0.00022191,3]
[329549124,1718428267635,-500.0,0.00022191,3]
[329549125,1718428267653,-500.0,0.00022191,3]
[329549126,1718428267708,-500.0,0.00022191,3]
[329549127,1718428267734,-500.0,0.00022191,3]
[329549128,1718428267745,-500.0,0.00022191,3]
[329549129,1718428267762,-500.0,0.00022191,3]
[329549130,1718428267775,-500.0,0.00022191,3]
[329549131,1718428267806,-500.0,0.00022191,3]
[329549132,1718428267821,-500.0,0.00022191,3]
[329549133,1718428267836,-500.0,0.00022191,3]
[329549134,1718428267850,-500.0,0.00022191,3]
[329549135,1718428267876,-56.48510167,0.00022191,3]
[329549136,1718428268305,-337.262,0.00022191,3]
[329549144,1718428400666,150.41,0.00024329,30]
[329549146,1718428503702,-1137.94782668,0.00013491,2]
[329549147,1718428503731,-1299.99774208,0.00013492,2]
[329549148,1718428503764,-226.54300481,0.00013493,2]
[329549158,1718428592172,2765.13108846,0.00013493,2]
[329549159,1718428600780,350.43098329,0.00013493,2]
[329549160,1718428602691,401.38509278,0.00013493,2]
[329549162,1718428604079,35590.29437909,0.00013493,2]
[329549175,1718428989560,150.41,0.00024329,30]
[329549178,1718428999744,1333.34021601,0.00025,30]
[329549182,1718429144048,399.82767624,0.000275,120]
[329549183,1718429225183,-155.00432624,0.00015695,2]
[329549184,1718429254477,-169.7,0.00015561,2]
[329549185,1718429254516,-196.02100783,0.00015695,2]
[329549186,1718429303141,322.58844065,0.00011771,2]
[329549187,1718429351534,255.16266695,0.00011771,2]
[329549195,1718429433808,-163.21,0.00015399,2]
[329549196,1718429433844,-1000.0,0.00017259,2]
[329549197,1718429433864,-508.55,0.00017309,2]
[329549198,1718429433951,-1000.0,0.0001907,2]
[329549199,1718429433973,-148.24,0.00019223,2]
[329549200,1718429433986,-5966.31,0.00019223,2]
[329549201,1718429434000,-200.0,0.00019242,2]
[329549202,1718429434044,-478.02,0.00019259,2]
[329549203,1718429434088,-250.0,0.00019262,2]
[329549204,1718429434114,-344.26,0.00019359,2]
[329549205,1718429434128,-230.0,0.00019403,2]
[329549206,1718429434141,-200.0,0.00019441,2]
[329549207,1718429434154,-150.0,0.00019448,2]
[329549208,1718429434193,-2390.43,0.00019451,2]
[329549209,1718429434292,-4891.32794952,0.00019451,2]
[329549210,1718429434309,-499.99,0.00019451,2]
[329549211,1718429434338,-237.72,0.00019451,2]
[329549212,1718429434377,-794.38,0.00019488,2]
[329549213,1718429434398,-250.0,0.00019492,2]
[329549214,1718429434414,-685.34,0.00019541,2]
[329549215,1718429434427,-157.38,0.0001956,2]
[329549216,1718429434472,-2237.14219427,0.00019562,2]
[329549217,1718429434483,-293.91683192,0.00019562,2]
[329549218,1718429434503,-541.54407872,0.00019562,2]
[329549219,1718429434560,-417.43793546,0.00019563,7]
[329549220,1718429434600,-22526.4,0.00019564,2]
[329549221,1718429434611,-508.55,0.00019573,2]
[329549222,1718429434640,-1000.0,0.00019595,2]
[329549223,1718429434683,-1000.0,0.00019649,2]
[329549224,1718429434709,-1000.0,0.00019703,2]
[329549225,1718429434755,-2751.0,0.00019718,2]
[329549226,1718429434840,-388.78277645,0.00019724,2]
[329549227,1718429434854,-1000.0,0.00019756,2]
[329549228,1718429434864,-178.2,0.000198,2]
[329549229,1718429434875,-1000.0,0.0001981,2]
[329549230,1718429435005,-300.0,0.00019836,2]
[329549231,1718429435057,-1000.0,0.00019864,2]
[329549232,1718429435068,-1000.0,0.00019918,2]
[329549233,1718429435081,-359.26953466,0.00019971,2]
[329549235,1718429435239,-640.73046534,0.00019971,2]
[329549237,1718429435295,-217.43344419,0.00020025,2]
[329549238,1718429435485,-782.56655581,0.00020025,2]
[329549239,1718429435499,-190.9,0.00020054,2]
[329549240,1718429435716,-1000.0,0.00020079,2]
[329549241,1718429435731,-226.79813277,0.000201,2]
[329549242,1718429435747,-1000.0,0.00020133,2]
[329549243,1718429435759,-1000.0,0.00020186,2]
[329549244,1718429435840,-1000.0,0.0002024,2]
[329549245,1718429435916,-1000.0,0.00020294,2]
[329549246,1718429435948,-1000.0,0.00020348,2]
[329549247,1718429435962,-1000.0,0.00020401,2]
[329549248,1718429435977,-1000.0,0.00020455,2]
[329549249,1718429436016,-1000.0,0.00020509,2]
[329549250,1718429436050,-240.0,0.00020555,2]
[329549251,1718429436063,-1000.0,0.00020563,2]
[329549252,1718429436081,-1000.0,0.00020616,2]
[329549253,1718429436093,-190.9,0.00020756,2]
[329549254,1718429436104,-1250.0,0.00021,2]
[329549255,1718429436115,-211.777,0.00021376,2]
[329549256,1718429436129,-1180.4146,0.00021378,2]
[329549257,1718429436140,-181.94745038,0.00021378,4]
[329549258,1718429436151,-47.77245632,0.00021379,2]
[329549259,1718429436275,-7975.37344368,0.00021379,2]
[329549260,1718429436293,-180.0,0.00021393,2]
[329549261,1718429436305,-190.9,0.00021457,2]
[329549262,1718429436331,-4108.87971178,0.00021458,2]
[329549263,1718429436376,-791.82,0.00021468,3]
[329549264,1718429436411,-1051.43202275,0.00021474,2]
[329549265,1718429436429,-871.8702474,0.00021475,2]
[329549266,1718429436448,-179.95486968,0.00021476,2]
[329549267,1718429436460,-156.89606708,0.00021476,2]
[329549268,1718429436497,-236.92670876,0.00021476,2]
[329549269,1718429436521,-236.31144653,0.00021476,2]
[329549270,1718429436550,-155.0,0.00021476,2]
[329549271,1718429436567,-158.08520591,0.00021476,2]
[329549272,1718429436585,-157.83198222,0.00021476,2]
[329549273,1718429436616,-155.81036952,0.00021476,2]
[329549274,1718429436629,-269.6222555,0.00021476,2]
[329549275,1718429436648,-164.26969583,0.00021476,2]
[329549276,1718429436661,-1168.66716151,0.00021476,2]
[329549277,1718429436678,-163.12474467,0.00021476,2]
[329549278,1718429436693,-338.68648196,0.00021476,2]
[329549279,1718429436704,-883.07582478,0.00021476,2]
[329549280,1718429436715,-251.28886194,0.00021476,2]
[329549281,1718429436744,-293.18811258,0.00021476,2]
[329549282,1718429436763,-539.79988692,0.00021476,2]
[329549283,1718429436774,-159.96723012,0.00021476,2]
[329549284,1718429436813,-721.32839123,0.00021476,2]
[329549285,1718429436848,-181.52771032,0.00021476,2]
[329549286,1718429436863,-283.91322661,0.00021476,2]
[329549287,1718429436879,-871.01833579,0.00021476,2]
[329549288,1718429436890,-361.92654638,0.00021476,2]
[329549289,1718429436908,-195.82929132,0.00021476,2]
[329549290,1718429436930,-309.26892575,0.00021476,2]
[329549291,1718429436942,-195.82725417,0.00021476,2]
[329549292,1718429436957,-155.0,0.00021476,2]
[329549293,1718429436973,-257.59064494,0.00021476,2]
[329549294,1718429437006,-688.50873059,0.00021476,2]
[329549295,1718429437044,-288.93223031,0.00021476,2]
[329549296,1718429437108,-162.64291502,0.00021476,2]
[329549297,1718429437125,-169.56736745,0.00021477,2]
[329549298,1718429437148,-359.53217825,0.00021477,2]
[329549299,1718429437177,-482.47257714,0.00021477,2]
[329549300,1718429437209,-253.80494661,0.00021477,2]
[329549301,1718429437240,-156.21891339,0.00021477,2]
[329549302,1718429437251,-326.99916376,0.00021477,2]
[329549303,1718429437271,-156.44148676,0.00021477,2]
[329549304,1718429437283,-27633.67038093,0.00021477,2]
[329549305,1718429437295,-163.37193246,0.00021478,2]
[329549306,1718429437320,-155.06746399,0.00021478,2]
[329549307,1718429437331,-231.32201352,0.00021478,2]
[329549308,1718429437360,-158.66458129,0.00021478,2]
[329549309,1718429437372,-275402.94650298,0.00021478,2]
[329549310,1718429437385,-156.03288843,0.00021478,2]
[329549311,1718429437398,-169.59595896,0.00021478,2]
[329549312,1718429437424,-500.0,0.00021479,2]
[329549313,1718429437456,-6875.88745642,0.00021479,2]
[329549314,1718429437486,-10994.0339,0.0002148,2]
[329549315,1718429437500,-211399.88364213,0.0002148,2]
[329549320,1718429439496,-32692.92533568,0.0002148,2]
[329549321,1718429439563,-907.19102219,0.0002148,2]
[329549322,1718429439602,-383.19273597,0.00021753,2]
[329549323,1718429439615,-1225.92471386,0.000218,2]
[329549324,1718429440042,-1989.47898931,0.000218,2]
[329549325,1718429441060,-1181.76558521,0.000218,2]
[329549326,1718429441085,-219.8,0.00021808,2]
[329549327,1718429441118,-1659.62654016,0.00021817,2]
[329549328,1718429441145,-4272.26535015,0.00021817,2]
[329549329,1718429441283,-647.20755088,0.00021817,2]
[329549330,1718429441304,-3021.65992862,0.00021817,2]
[329549331,1718429441327,-399.24063019,0.00021817,2]
[329549332,1718429441385,-191.34999251,0.00021817,2]
[329549333,1718429441416,-167.04454445,0.00021817,2]
[329549334,1718429441448,-176.77024669,0.00021817,2]
[329549335,1718429441472,-74.21184992,0.00021836,2]
[329549336,1718429441611,-0.16928839,0.00021836,2]
[329549337,1718429441648,-434.16886169,0.00021836,2]
[329549338,1718429441659,-151.11,0.00021907,2]
[329549339,1718429441681,-414.35299843,0.00021913,2]
[329549340,1718429441694,-644.2202967,0.00021915,2]
[329549341,1718429441714,-480.83497647,0.00021915,2]
[329549342,1718429441727,-155.99767071,0.00021915,2]
[329549343,1718429441748,-155.8937949,0.00021915,2]
[329549344,1718429441788,-2752.62923936,0.00021915,2]
[329549345,1718429441827,-3905.21612152,0.00021917,2]
[329549346,1718429441842,-168.5047947,0.00021917,2]
[329549347,1718429441860,-506.38177543,0.00021917,2]
[329549348,1718429441873,-500.0,0.00021917,2]
[329549349,1718429441912,-500.0,0.00021917,2]
[329549350,1718429441924,-500.0,0.00021917,2]
[329549351,1718429441976,-500.0,0.00021917,2]
[329549352,1718429441991,-500.0,0.00021917,2]
[329549353,1718429442002,-500.0,0.00021917,2]
[329549354,1718429442037,-500.0,0.00021917,2]
[329549355,1718429442079,-500.0,0.00021917,2]
[329549356,1718429442090,-500.0,0.00021917,2]
[329549357,1718429442101,-500.0,0.00021917,2]
[329549358,1718429442112,-500.0,0.00021917,2]
[329549359,1718429442123,-500.0,0.00021917,2]
[329549360,1718429442140,-255.22111916,0.00021917,2]
[329549362,1718429444544,-263.56330401,0.00021917,2]
[329549364,1718429444556,-455.70433036,0.00021917,2]
[329549374,1718429444749,-44.29566964,0.00021917,2]
[329549375,1718429444760,-500.0,0.00021917,2]
[329549377,1718429444774,-151.90433036,0.00021917,2]
[329549380,1718429445007,-348.09566964,0.00021917,2]
[329549381,1718429445044,-53.14772912,0.00021917,2]
[329549382,1718429445076,-446.85227088,0.00021917,2]
[329549383,1718429445110,-84.07159319,0.00021917,2]
[329549384,1718429445123,-415.92840681,0.00021917,2]
[329549385,1718429445144,-500.0,0.00021917,2]
[329549386,1718429445159,-606.80803646,0.00021917,2]
[329549387,1718429445173,-492.27168782,0.00021917,2]
[329549388,1718429445213,-7.72831218,0.00021917,2]
[329549389,1718429445224,-500.0,0.00021917,2]
[329549390,1718429445265,-500.0,0.00021917,2]
[329549391,1718429445284,-517.59012444,0.00021917,2]
[329549392,1718429445319,-124.1103371,0.00021917,2]
[329549393,1718429445342,-542.04053456,0.00021917,2]
[329549394,1718429445354,-500.0,0.00021917,2]
[329549395,1718429445365,-124.62168992,0.00021917,2]
[329549396,1718429445378,-352.75909744,0.00021917,2]
[329549397,1718429445398,-43.37344552,0.00021917,2]
[329549398,1718429445408,-500.0,0.00021917,2]
[329549399,1718429445424,-500.0,0.00021917,2]
[329549400,1718429445440,-500.0,0.00021917,2]
[329549401,1718429445485,-500.0,0.00021917,2]
[329549402,1718429445513,-500.0,0.00021917,2]
[329549403,1718429445531,-500.0,0.00021917,2]
[329549404,1718429445544,-500.0,0.00021917,2]
[329549405,1718429445556,-526.16687761,0.00021917,2]
[329549406,1718429445572,-500.0,0.00021917,2]
[329549407,1718429445600,-500.0,0.00021917,2]
[329549408,1718429445620,-541.58466045,0.00021917,2]
[329549409,1718429445634,-500.0,0.00021917,2]
[329549410,1718429445649,-500.0,0.00021917,2]
[329549411,1718429445661,-521.57781496,0.00021917,2]
[329549412,1718429445684,-500.0,0.00021917,2]
[329549413,1718429445700,-500.0,0.00021917,2]
[329549414,1718429445714,-500.0,0.00021917,2]
[329549415,1718429445737,-500.0,0.00021917,2]
[329549416,1718429445749,-500.0,0.00021917,2]
[329549417,1718429445760,-530.34,0.00021917,2]
[329549418,1718429445809,-500.0,0.00021917,2]
[329549419,1718429445831,-576.4346764,0.00021917,2]
[329549420,1718429445855,-500.0,0.00021917,2]
[329549421,1718429445892,-500.0,0.00021917,2]
[329549422,1718429445921,-500.0,0.00021917,2]
[329549423,1718429445956,-500.0,0.00021917,2]
[329549424,1718429445967,-511.63752381,0.00021917,2]
[329549425,1718429445997,-842.43,0.00021917,2]
[329549426,1718429446008,-602.99472359,0.00021917,2]
[329549427,1718429446028,-503.51932681,0.00021917,2]
[329549428,1718429446067,-500.0,0.00021917,2]
[329549429,1718429446090,-500.0,0.00021917,2]
[329549430,1718429446107,-500.0,0.00021917,2]
[329549431,1718429446143,-500.0,0.00021917,2]
[329549432,1718429446154,-500.0,0.00021917,2]
[329549433,1718429446166,-500.0,0.00021917,2]
[329549434,1718429446176,-500.0,0.00021917,2]
[329549435,1718429446188,-500.0,0.00021917,2]
[329549436,1718429446200,-500.0,0.00021917,2]
[329549437,1718429446211,-500.0,0.00021917,2]
[329549438,1718429446225,-500.0,0.00021917,2]
[329549439,1718429446245,-542.27605338,0.00021917,2]
[329549440,1718429446276,-521.55988775,0.00021917,2]
[329549441,1718429446309,-500.0,0.00021917,2]
[329549442,1718429446336,-500.0,0.00021917,2]
[329549443,1718429446351,-500.0,0.00021917,2]
[329549444,1718429446361,-500.0,0.00021917,2]
[329549445,1718429446377,-500.0,0.00021917,2]
[329549446,1718429446448,-513.89915317,0.00021917,2]
[329549447,1718429446486,-500.0,0.00021917,2]
[329549448,1718429446507,-500.0,0.00021917,2]
[329549449,1718429446549,-500.0,0.00021917,2]
[329549450,1718429446585,-500.0,0.00021917,2]
[329549451,1718429446607,-500.0,0.00021917,2]
[329549452,1718429446635,-500.0,0.00021917,2]
[329549453,1718429446664,-500.0,0.00021917,2]
[329549454,1718429446696,-500.0,0.00021917,2]
[329549455,1718429446706,-500.0,0.00021917,2]
[329549456,1718429446745,-500.0,0.00021917,2]
[329549457,1718429446762,-500.0,0.00021917,2]
[329549458,1718429446780,-500.0,0.00021917,2]
[329549459,1718429446793,-500.0,0.00021917,2]
[329549460,1718429446833,-500.0,0.00021917,2]
[329549461,1718429446843,-500.0,0.00021917,2]
[329549463,1718429446895,-299.00466823,0.00021917,2]
[329549464,1718429446939,-500.0,0.00021917,2]
[329549465,1718429446950,-500.0,0.00021917,2]
[329549466,1718429446978,-500.0,0.00021917,2]
[329549467,1718429446990,-507.40673298,0.00021917,2]
[329549468,1718429447001,-500.0,0.00021917,2]
[329549469,1718429447017,-500.0,0.00021917,2]
[329549470,1718429447052,-500.0,0.00021917,2]
[329549471,1718429447100,-500.0,0.00021917,2]
[329549472,1718429447148,-500.0,0.00021917,2]
[329549473,1718429447159,-500.0,0.00021917,2]
[329549474,1718429447171,-500.0,0.00021917,2]
[329549475,1718429447182,-500.0,0.00021917,2]
[329549476,1718429447193,-500.0,0.00021917,2]
[329549477,1718429447205,-500.0,0.00021917,2]
[329549478,1718429447236,-500.07207971,0.00021917,2]
[329549479,1718429447255,-500.0,0.00021917,2]
[329549480,1718429447266,-500.0,0.00021917,2]
[329549481,1718429447282,-500.0,0.00021917,2]
[329549482,1718429447301,-500.0,0.00021917,2]
[329549483,1718429447329,-500.0,0.00021917,2]
[329549484,1718429447346,-520.50088749,0.00021917,2]
[329549485,1718429447359,-500.0,0.00021917,2]
[329549486,1718429447404,-500.0,0.00021917,2]
[329549487,1718429447415,-500.0,0.00021917,2]
[329549488,1718429447578,-500.0,0.00021917,2]
[329549489,1718429447590,-500.0,0.00021917,2]
[329549490,1718429447612,-500.0,0.00021917,2]
[329549491,1718429447625,-500.0,0.00021917,2]
[329549492,1718429447636,-500.0,0.00021917,2]
[329549493,1718429447647,-500.0,0.00021917,2]
[329549494,1718429447659,-500.0,0.00021917,2]
[329549495,1718429447680,-500.0,0.00021917,2]
[329549496,1718429447691,-500.0,0.00021917,2]
[329549497,1718429447702,-500.0,0.00021917,2]
[329549498,1718429447717,-500.0,0.00021917,2]
[329549499,1718429447730,-500.0,0.00021917,2]
[329549500,1718429447742,-500.0,0.00021917,2]
[329549501,1718429447753,-500.0,0.00021917,2]
[329549502,1718429447765,-500.0,0.00021917,2]
[329549503,1718429447778,-574.34,0.00021917,2]
[329549504,1718429447789,-500.0,0.00021917,2]
[329549505,1718429447817,-500.0,0.00021917,2]
[329549506,1718429447836,-500.0,0.00021917,2]
[329549507,1718429447848,-500.0,0.00021917,2]
[329549508,1718429447859,-500.0,0.00021917,2]
[329549509,1718429447870,-500.0,0.00021917,2]
[329549510,1718429447891,-500.0,0.00021917,2]
[329549511,1718429447923,-500.0,0.00021917,2]
[329549512,1718429447948,-500.0,0.00021917,2]
[329549513,1718429447969,-500.0,0.00021917,2]
[329549514,1718429447984,-500.0,0.00021917,2]
[329549515,1718429447996,-500.0,0.00021917,2]
[329549516,1718429448010,-500.0,0.00021917,2]
[329549517,1718429448025,-500.0,0.00021917,2]
[329549518,1718429448037,-500.0,0.00021917,2]
[329549519,1718429448052,-539.0043378,0.00021917,2]
[329549520,1718429448064,-500.0,0.00021917,2]
[329549521,1718429448078,-500.0,0.00021917,2]
[329549522,1718429448108,-500.0,0.00021917,2]
[329549523,1718429448123,-515.43953257,0.00021917,2]
[329549524,1718429448134,-500.0,0.00021917,2]
[329549525,1718429448155,-675.02,0.00021917,2]
[329549526,1718429448173,-500.0,0.00021917,2]
[329549527,1718429448186,-500.0,0.00021917,2]
[329549528,1718429448229,-526.89468297,0.00021917,2]
[329549529,1718429448256,-500.0,0.00021917,2]
[329549530,1718429448278,-500.0,0.00021917,2]
[329549531,1718429448303,-500.0,0.00021917,2]
[329549532,1718429448332,-500.0,0.00021917,2]
[329549533,1718429448347,-500.0,0.00021917,2]
[329549534,1718429448361,-500.0,0.00021917,2]
[329549535,1718429448399,-500.0,0.00021917,2]
[329549536,1718429448415,-500.0,0.00021917,2]
[329549537,1718429448430,-500.0,0.00021917,2]
[329549538,1718429448443,-500.0,0.00021917,2]
[329549539,1718429448472,-500.0,0.00021917,2]
[329549540,1718429448486,-500.0,0.00021917,2]
[329549541,1718429448513,-500.0,0.00021917,2]
[329549543,1718429448540,-305.26357751,0.00021917,2]
[329549545,1718429448566,-604.47,0.00021917,2]
[329549547,1718429448585,-500.0,0.00021917,2]
[329549549,1718429448609,-500.0,0.00021917,2]
[329549551,1718429448625,-589.55163014,0.00021917,2]
[329549553,1718429448677,-500.0,0.00021917,2]
[329549555,1718429448690,-500.0,0.00021917,2]
[329549556,1718429448701,-500.0,0.00021917,2]
[329549559,1718429448741,-724.93,0.00021917,2]
[329549561,1718429448780,-500.0,0.00021917,2]
[329549562,1718429448793,-500.0,0.00021917,2]
[329549563,1718429448806,-1096.08,0.00021917,2]
[329549565,1718429448820,-502.58473155,0.00021917,2]
[329549567,1718429448836,-514.60359621,0.00021917,2]
[329549568,1718429448861,-500.0,0.00021917,2]
[329549569,1718429448889,-500.0,0.00021917,2]
[329549571,1718429448908,-500.0,0.00021917,2]
[329549573,1718429448940,-1551.21,0.00021917,2]
[329549575,1718429448968,-500.0,0.00021917,2]
[329549576,1718429448983,-500.0,0.00021917,2]
[329549577,1718429449016,-500.0,0.00021917,2]
[329549578,1718429449044,-500.0,0.00021917,2]
[329549579,1718429449057,-532.45021723,0.00021917,2]
[329549580,1718429449079,-506.54213941,0.00021917,2]
[329549581,1718429449108,-500.0,0.00021917,2]
[329549582,1718429449144,-500.0,0.00021917,2]
[329549583,1718429449174,-500.0,0.00021917,2]
[329549584,1718429449193,-853.72,0.00021917,2]